fUST/lending_fUST_20241203
["ID","MTS","AMOUNT","RATE_DAILY","PERIOD"]
[343993681,1733171435430,-500.0,0.00028767,7]
[343993682,1733171435441,-4006.23,0.00028767,7]
[343993683,1733171435452,-500.0,0.00028767,7]
[343993684,1733171435465,-500.0,0.00028767,7]
[343993685,1733171435476,-583.8,0.00028767,7]
[343993686,1733171435561,-500.0,0.00028767,7]
[343993687,1733171435572,-2367.49,0.00028767,7]
[343993688,1733171435581,-500.0,0.00028767,7]
[343993689,1733171435591,-186.8,0.00028767,7]
[343993690,1733171435601,-500.0,0.00028767,7]
[343993691,1733171435611,-500.0,0.00028767,7]
[343993692,1733171435620,-500.0,0.00028767,7]
[343993693,1733171435630,-500.0,0.00028767,7]
[343993694,1733171435640,-151.500474,0.00028776,2]
[343993695,1733171435650,-9406.11862452,0.00028795,2]
[343993696,1733171435660,-153.0,0.00028932,30]
[343993697,1733171435670,-213.0944069,0.00028932,30]
[343993698,1733171435679,-211.6737215,0.00028932,30]
[343993699,1733171435689,-153.0,0.00028932,30]
[343993700,1733171435699,-203.0518868,0.00028932,30]
[343993701,1733171435710,-153.0,0.00028932,30]
[343993702,1733171435720,-153.0,0.00028932,30]
[343993703,1733171435730,-1000.0,0.00028985,5]
[343993704,1733171435740,-500.0,0.00029041,7]
[343993705,1733171435750,-500.0,0.00029041,7]
[343993706,1733171435759,-1091.53,0.00029041,7]
[343993707,1733171435768,-500.0,0.00029041,7]
[343993708,1733171435777,-500.0,0.00029041,7]
[343993709,1733171435787,-500.0,0.00029041,7]
[343993710,1733171435797,-4006.23,0.00029041,7]
[343993711,1733171435807,-500.0,0.00029041,7]
[343993712,1733171435816,-583.8,0.00029041,7]
[343993713,1733171435825,-490.00000003,0.00029041,7]
[343993714,1733171435835,-2367.49,0.00029041,7]
[343993715,1733171435844,-500.0,0.00029041,7]
[343993716,1733171435854,-500.0,0.00029041,7]
[343993717,1733171435864,-500.0,0.00029041,7]
[343993718,1733171435874,-500.0,0.00029041,7]
[343993719,1733171435883,-500.0,0.00029041,7]
[343993720,1733171435893,-169.37,0.000292,31]
[343993721,1733171435902,-169.37,0.000292,31]
[343993722,1733171435912,-169.37,0.000292,31]
[343993723,1733171435922,-169.37,0.000292,31]
[343993724,1733171435932,-169.37,0.000292,31]
[343993725,1733171435942,-169.37,0.000292,31]
[343993726,1733171435951,-169.37,0.000292,31]
[343993727,1733171435962,-169.37,0.000292,31]
[343993728,1733171435973,-169.37,0.000292,31]
[343993729,1733171435982,-169.37,0.000292,31]
[343993730,1733171435991,-169.37,0.000292,31]
[343993731,1733171436001,-169.37,0.000292,31]
[343993732,1733171436010,-171.26740937,0.00029215,2]
[343993733,1733171436020,-151.500474,0.00029255,2]
[343993734,1733171436030,-9406.11862452,0.00029312,2]
[343993735,1733171436039,-500.0,0.00029315,7]
[343993736,1733171436049,-500.0,0.00029315,7]
[343993737,1733171436058,-1091.53,0.00029315,7]
[343993738,1733171436067,-500.0,0.00029315,7]
[343993739,1733171436077,-500.0,0.00029315,7]
[343993740,1733171436087,-4006.23,0.00029315,7]
[343993741,1733171436102,-583.8,0.00029315,7]
[343993742,1733171436111,-2367.49,0.00029315,7]
[343993743,1733171436120,-500.0,0.00029315,7]
[343993744,1733171436131,-500.0,0.00029315,7]
[343993745,1733171436140,-500.0,0.00029315,7]
[343993746,1733171436150,-500.0,0.00029315,7]
[343993747,1733171436159,-500.0,0.00029315,7]
[343993748,1733171436172,-500.0,0.00029325,5]
[343993749,1733171436182,-155.00066612,0.00029451,2]
[343993750,1733171436191,-2363.67852789,0.00029452,2]
[343993751,1733171436201,-10449.41339236,0.000295,14]
[343993752,1733171436212,-1500.0,0.00029543,5]
[343993753,1733171436222,-9406.11862452,0.00029577,2]
[343993754,1733171436233,-500.0,0.00029589,7]
[343993755,1733171436243,-380.72517279,0.00029589,7]
[343993756,1733171436253,-1091.53,0.00029589,7]
[343993757,1733171436262,-500.0,0.00029589,7]
[343993758,1733171436271,-372.19,0.00029589,7]
[343993759,1733171436281,-4006.23,0.00029589,7]
[343993760,1733171436291,-583.8,0.00029589,7]
[343993761,1733171436301,-2367.49,0.00029589,7]
[343993762,1733171436310,-500.0,0.00029589,7]
[343993763,1733171436320,-500.0,0.00029589,7]
[343993764,1733171436329,-500.0,0.00029589,7]
[343993765,1733171436339,-500.0,0.00029589,7]
[343993766,1733171436348,-500.0,0.00029589,7]
[343993767,1733171436358,-171.26740937,0.00029623,2]
[343993768,1733171436367,-9406.11862452,0.00029706,2]
[343993769,1733171436378,-151.500474,0.00029735,2]
[343993770,1733171436387,-153.0,0.00029753,30]
[343993771,1733171436397,-154.0,0.00029863,7]
[343993772,1733171436407,-1091.53,0.00029863,7]
[343993773,1733171436417,-500.0,0.00029863,7]
[343993774,1733171436427,-4006.23,0.00029863,7]
[343993775,1733171436436,-583.8,0.00029863,7]
[343993776,1733171436446,-2367.49,0.00029863,7]
[343993777,1733171436455,-500.0,0.00029863,7]
[343993778,1733171436467,-500.0,0.00029863,7]
[343993779,1733171436476,-500.0,0.00029863,7]
[343993780,1733171436485,-500.0,0.00029863,7]
[343993781,1733171436495,-500.0,0.00029863,7]
[343993782,1733171436504,-1001.01931317,0.00029873,5]
[343993783,1733171436515,-9406.11862452,0.00029938,2]
[343993784,1733171436525,-1000.0,0.00029987,5]
[343993785,1733171436535,-164.946,0.0003,2]
[343993786,1733171436545,-151.0,0.0003,120]
[343993787,1733171436555,-151.0,0.0003,120]
[343993788,1733171436565,-20000.0,0.0003,5]
[343993789,1733171436575,-800.48228658,0.0003,2]
[343993790,1733171436585,-14487.12432266,0.0003,2]
[343993791,1733171436595,-1500.0,0.0003,2]
[343993792,1733171436605,-1024.54898977,0.0003,7]
[343993793,1733171436615,-167.91287049,0.0003,2]
[343993794,1733171436625,-412.73792482,0.0003,10]
[343993795,1733171436635,-8000.0,0.0003,3]
[343993796,1733171436645,-162.0,0.0003,2]
[343993797,1733171436654,-205.0,0.0003,2]
[343993798,1733171436665,-171.26740937,0.00030032,2]
[343993799,1733171436675,-169.37,0.000301,31]
[343993800,1733171436686,-169.37,0.000301,31]
[343993801,1733171436696,-169.37,0.000301,31]
[343993802,1733171436706,-169.37,0.000301,31]
[343993803,1733171436719,-169.37,0.000301,31]
[343993804,1733171436729,-169.37,0.000301,31]
[343993805,1733171436739,-169.37,0.000301,31]
[343993806,1733171436750,-169.37,0.000301,31]
[343993807,1733171436761,-169.37,0.000301,31]
[343993808,1733171436770,-169.37,0.000301,31]
[343993809,1733171436780,-169.37,0.000301,31]
[343993810,1733171436790,-169.37,0.000301,31]
[343993811,1733171436800,-169.37,0.000301,31]
[343993812,1733171436810,-169.37,0.000301,31]
[343993813,1733171436819,-169.37,0.000301,31]
[343993814,1733171436830,-169.37,0.000301,31]
[343993815,1733171436840,-169.37,0.000301,31]
[343993816,1733171436849,-169.37,0.000301,31]
[343993817,1733171436858,-169.37,0.000301,31]
[343993818,1733171436868,-169.37,0.000301,31]
[343993819,1733171436877,-169.37,0.000301,31]
[343993820,1733171436887,-169.37,0.000301,31]
[343993821,1733171436896,-169.37,0.000301,31]
[343993822,1733171436906,-169.37,0.000301,31]
[343993823,1733171436915,-1091.53,0.00030136,7]
[343993824,1733171436925,-500.0,0.00030136,7]
[343993825,1733171436934,-4006.23,0.00030136,7]
[343993826,1733171436943,-583.8,0.00030136,7]
[343993827,1733171436953,-2367.49,0.00030136,7]
[343993828,1733171436964,-500.0,0.00030136,7]
[343993829,1733171436973,-500.0,0.00030136,7]
[343993830,1733171436983,-500.0,0.00030136,7]
[343993831,1733171436993,-500.0,0.00030136,7]
[343993832,1733171437003,-500.0,0.00030136,7]
[343993833,1733171437013,-197.042322,0.00030137,120]
[343993834,1733171437023,-151.500474,0.00030215,2]
[343993835,1733171437032,-431.28358,0.0003023,30]
[343993836,1733171437042,-9406.11862452,0.00030246,2]
[343993837,1733171437052,-187.8426867,0.00030276,4]
[343993838,1733171437061,-17568.50000001,0.000303,10]
[343993839,1733171437071,-1091.53,0.0003041,7]
[343993840,1733171437080,-500.0,0.0003041,7]
[343993841,1733171437090,-4006.23,0.0003041,7]
[343993842,1733171437099,-583.8,0.0003041,7]
[343993843,1733171437111,-2367.49,0.0003041,7]
[343993844,1733171437121,-500.0,0.0003041,7]
[343993845,1733171437131,-253.8,0.0003041,7]
[343993846,1733171437141,-500.0,0.0003041,7]
[343993847,1733171437151,-500.0,0.0003041,7]
[343993848,1733171437161,-500.0,0.0003041,7]
[343993849,1733171437171,-1221.0809417,0.00030425,2]
[343993850,1733171437182,-500.0,0.00030438,7]
[343993851,1733171437192,-9990.42585768,0.00030438,2]
[343993852,1733171437201,-33000.0,0.00030439,2]
[343993853,1733171437213,-666.0,0.00030439,2]
[343993854,1733171437223,-171.26740937,0.0003044,2]
[343993855,1733171437232,-2363.67852789,0.0003044,2]
[343993856,1733171437242,-980.49,0.000305,2]
[343993857,1733171437251,-3011.31672894,0.000305,2]
[343993858,1733171437260,-3011.31672892,0.000305,2]
[343993859,1733171437269,-3011.31672892,0.000305,2]
[343993860,1733171437279,-3011.31672892,0.000305,2]
[343993861,1733171437289,-150.0,0.000305,2]
[343993862,1733171437298,-4577.13531122,0.000305,2]
[343993863,1733171437307,-4577.13531121,0.000305,2]
[343993864,1733171437316,-4577.13531121,0.000305,2]
[343993865,1733171437325,-4577.13531121,0.000305,2]
[343993866,1733171437335,-161.814609,0.00030537,7]
[343993867,1733171437344,-152.707552,0.00030537,7]
[343993868,1733171437353,-151.0,0.00030537,7]
[343993869,1733171437363,-151.0,0.00030537,7]
[343993870,1733171437372,-151.0,0.00030537,7]
[343993871,1733171437382,-151.0,0.00030537,7]
[343993872,1733171437392,-151.0,0.00030537,7]
[343993873,1733171437402,-403.422885,0.00030537,7]
[343993874,1733171437411,-403.422885,0.00030537,7]
[343993875,1733171437421,-403.422885,0.00030537,7]
[343993876,1733171437432,-403.422885,0.00030537,7]
[343993877,1733171437441,-403.422885,0.00030537,7]
[343993878,1733171437452,-403.422885,0.00030537,7]
[343993879,1733171437466,-403.422885,0.00030537,7]
[343993880,1733171437476,-403.422885,0.00030537,7]
[343993881,1733171437487,-403.422885,0.00030537,7]
[343993882,1733171437497,-403.422885,0.00030537,7]
[343993883,1733171437508,-151.0,0.00030537,7]
[343993884,1733171437518,-151.0,0.00030537,7]
[343993885,1733171437602,-151.0,0.00030537,7]
[343993886,1733171437612,-151.0,0.00030537,7]
[343993887,1733171437622,-151.0,0.00030537,7]
[343993888,1733171437631,-160.577086,0.00030537,7]
[343993889,1733171437641,-151.0,0.00030537,7]
[343993890,1733171437650,-151.0,0.00030537,7]
[343993891,1733171437660,-151.0,0.00030537,7]
[343993892,1733171437669,-151.0,0.00030537,7]
[343993893,1733171437679,-185.76308,0.00030537,7]
[343993894,1733171437688,-151.0,0.00030537,2]
[343993895,1733171437698,-206.476566,0.00030537,2]
[343993896,1733171437710,-874.835626,0.00030537,7]
[343993897,1733171437719,-874.835626,0.00030537,7]
[343993898,1733171437728,-874.835626,0.00030537,7]
[343993899,1733171437738,-874.835626,0.00030537,7]
[343993900,1733171437748,-874.835626,0.00030537,7]
[343993902,1733171437758,-874.835626,0.00030537,7]
[343993903,1733171437768,-874.835626,0.00030537,7]
[343993904,1733171437777,-874.835626,0.00030537,7]
[343993905,1733171437787,-874.835626,0.00030537,7]
[343993906,1733171437797,-874.835626,0.00030537,7]
[343993907,1733171437806,-1281.368282,0.00030537,7]
[343993908,1733171437816,-1281.368282,0.00030537,7]
[343993909,1733171437825,-1281.368282,0.00030537,7]
[343993910,1733171437835,-1281.368282,0.00030537,7]
[343993911,1733171437844,-1281.368282,0.00030537,7]
[343993912,1733171437854,-1281.368282,0.00030537,7]
[343993913,1733171437863,-1281.368282,0.00030537,7]
[343993914,1733171437873,-1281.368282,0.00030537,7]
[343993917,1733171437883,-1281.368282,0.00030537,7]
[343993919,1733171437894,-1281.368282,0.00030537,7]
[343993921,1733171437904,-151.0,0.00030538,7]
[343993922,1733171437913,-151.0,0.00030538,7]
[343993923,1733171437923,-151.0,0.00030538,7]
[343993924,1733171437933,-155.105461,0.00030538,7]
[343993925,1733171437942,-151.0,0.00030538,7]
[343993926,1733171437952,-151.0,0.00030538,7]
[343993927,1733171437963,-168.530228,0.00030538,7]
[343993928,1733171437973,-151.978194,0.00030538,7]
[343993929,1733171437983,-371.099312,0.00030538,7]
[343993930,1733171437993,-371.099312,0.00030538,7]
[343993931,1733171438003,-371.099312,0.00030538,7]
[343993932,1733171438013,-371.099312,0.00030538,7]
[343993933,1733171438024,-371.099312,0.00030538,7]
[343993934,1733171438034,-371.099312,0.00030538,7]
[343993935,1733171438045,-371.099312,0.00030538,7]
[343993937,1733171438055,-371.099312,0.00030538,7]
[343993939,1733171438065,-371.099312,0.00030538,7]
[343993940,1733171438076,-371.099312,0.00030538,7]
[343993942,1733171438086,-371.099312,0.00030538,7]
[343993944,1733171438100,-371.099312,0.00030538,7]
[343993946,1733171438111,-151.0,0.00030538,7]
[343993948,1733171438121,-151.0,0.00030538,7]
[343993949,1733171438130,-151.0,0.00030538,7]
[343993950,1733171438142,-151.0,0.00030538,7]
[343993952,1733171438152,-151.0,0.00030538,7]
[343993953,1733171438162,-151.0,0.00030538,7]
[343993954,1733171438173,-222.241637,0.00030538,7]
[343993955,1733171438183,-151.0,0.00030539,7]
[343993956,1733171438194,-151.0,0.00030539,7]
[343993957,1733171438204,-151.0,0.00030539,7]
[343993958,1733171438217,-151.0,0.00030539,7]
[343993959,1733171438231,-151.0,0.00030539,7]
[343993960,1733171438241,-151.0,0.00030539,7]
[343993962,1733171438251,-151.0,0.00030539,7]
[343993964,1733171438261,-151.0,0.00030539,7]
[343993966,1733171438270,-156.165391,0.00030539,7]
[343993968,1733171438280,-151.0,0.00030539,7]
[343993970,1733171438290,-151.0,0.00030539,7]
[343993972,1733171438300,-151.0,0.00030539,7]
[343993973,1733171438310,-151.0,0.00030539,7]
[343993974,1733171438320,-151.0,0.00030539,7]
[343993975,1733171438329,-151.0,0.00030539,7]
[343993976,1733171438339,-151.0,0.00030539,7]
[343993977,1733171438350,-151.0,0.00030539,7]
[343993978,1733171438360,-151.0,0.00030539,7]
[343993979,1733171438369,-213.880915,0.00030539,7]
[343993980,1733171438379,-276.82164,0.00030539,7]
[343993981,1733171438388,-276.82164,0.00030539,7]
[343993982,1733171438398,-276.82164,0.00030539,7]
[343993983,1733171438408,-276.82164,0.00030539,7]
[343993984,1733171438418,-276.82164,0.00030539,7]
[343993986,1733171438429,-276.82164,0.00030539,7]
[343993987,1733171438439,-276.82164,0.00030539,7]
[343993989,1733171438449,-276.82164,0.00030539,7]
[343993991,1733171438461,-276.82164,0.00030539,7]
[343993992,1733171438470,-276.82164,0.00030539,7]
[343993993,1733171438479,-276.82164,0.00030539,7]
[343993994,1733171438489,-276.82164,0.00030539,7]
[343993995,1733171438500,-151.0,0.00030539,7]
[343993996,1733171438510,-151.0,0.00030539,7]
[343993997,1733171438520,-151.0,0.00030539,7]
[343993998,1733171438530,-151.0,0.00030539,7]
[343993999,1733171438544,-153.884172,0.00030539,7]
[343994000,1733171438558,-238.371104,0.00030539,7]
[343994001,1733171438573,-238.371104,0.00030539,7]
[343994002,1733171438587,-238.371104,0.00030539,7]
[343994003,1733171438599,-238.371104,0.00030539,7]
[343994004,1733171438611,-238.371104,0.00030539,7]
[343994005,1733171438623,-238.371104,0.00030539,7]
[343994006,1733171438635,-238.371104,0.00030539,7]
[343994007,1733171438646,-238.371104,0.00030539,7]
[343994008,1733171438659,-238.371104,0.00030539,7]
[343994009,1733171438671,-238.371104,0.00030539,7]
[343994010,1733171438685,-238.371104,0.00030539,7]
[343994011,1733171438697,-238.371104,0.00030539,7]
[343994012,1733171438711,-1150.580601,0.00030539,7]
[343994013,1733171438723,-1150.580601,0.00030539,7]
[343994014,1733171438736,-1150.580601,0.00030539,7]
[343994015,1733171438748,-1150.580601,0.00030539,7]
[343994016,1733171438759,-1150.580601,0.00030539,7]
[343994017,1733171438771,-1150.580601,0.00030539,7]
[343994018,1733171438783,-1150.580601,0.00030539,7]
[343994019,1733171438795,-1150.580601,0.00030539,7]
[343994020,1733171438808,-1150.580601,0.00030539,7]
[343994021,1733171438820,-1150.580601,0.00030539,7]
[343994022,1733171438831,-1150.580601,0.00030539,7]
[343994023,1733171438844,-1150.580601,0.00030539,7]
[343994024,1733171438854,-151.0,0.00030539,7]
[343994025,1733171438865,-151.0,0.00030539,7]
[343994026,1733171438878,-154.572936,0.00030539,7]
[343994027,1733171438889,-151.0,0.00030539,7]
[343994028,1733171438902,-151.0,0.00030539,7]
[343994029,1733171438914,-151.0,0.00030539,7]
[343994030,1733171438926,-151.0,0.00030539,7]
[343994031,1733171438938,-151.975445,0.00030539,7]
[343994032,1733171438950,-626.828618,0.00030539,7]
[343994033,1733171438965,-151.0,0.00030539,7]
[343994034,1733171438978,-626.828618,0.00030539,7]
[343994035,1733171438994,-151.0,0.00030539,7]
[343994036,1733171439008,-151.0,0.00030539,7]
[343994037,1733171439019,-151.0,0.00030539,7]
[343994038,1733171439030,-151.0,0.00030539,7]
[343994039,1733171439040,-151.0,0.00030539,7]
[343994040,1733171439051,-151.0,0.00030539,7]
[343994041,1733171439063,-151.0,0.00030539,7]
[343994042,1733171439075,-151.0,0.00030539,7]
[343994043,1733171439089,-151.0,0.00030539,7]
[343994044,1733171439103,-626.828618,0.00030539,7]
[343994045,1733171439116,-626.828618,0.00030539,7]
[343994046,1733171439127,-626.828618,0.00030539,7]
[343994047,1733171439140,-626.828618,0.00030539,7]
[343994048,1733171439150,-626.828618,0.00030539,7]
[343994049,1733171439164,-151.0,0.00030539,7]
[343994050,1733171439176,-151.0,0.00030539,7]
[343994051,1733171439188,-151.0,0.00030539,7]
[343994052,1733171439199,-151.0,0.00030539,7]
[343994053,1733171439212,-151.0,0.00030539,7]
[343994054,1733171439222,-390.71433,0.00030539,7]
[343994055,1733171439233,-390.71433,0.00030539,7]
[343994056,1733171439244,-390.71433,0.00030539,7]
[343994057,1733171439254,-390.71433,0.00030539,7]
[343994058,1733171439265,-390.71433,0.00030539,7]
[343994059,1733171439276,-390.71433,0.00030539,7]
[343994060,1733171439287,-390.71433,0.00030539,7]
[343994061,1733171439298,-390.71433,0.00030539,7]
[343994062,1733171439310,-390.71433,0.00030539,7]
[343994063,1733171439321,-390.71433,0.00030539,7]
[343994064,1733171439331,-208.16,0.00030539,7]
[343994065,1733171439342,-222.73805917,0.00030539,2]
[343994066,1733171439353,-74775.82208387,0.00030539,2]
[343994067,1733171439429,-4839.09571728,0.00030539,2]
[343994068,1733171439442,-3560.87523208,0.00030539,2]
[343994069,1733171439456,-144421.87361266,0.00030539,2]
[343994070,1733171439471,-283.61585959,0.0003054,7]
[343994071,1733171439483,-283.61585959,0.0003054,7]
[343994072,1733171439495,-15012.07564167,0.0003054,10]
[343994073,1733171439782,-500.0,0.00025999,2]
[343994075,1733171439792,-223.64195681,0.00025999,2]
[343994076,1733171439802,-500.0,0.00025999,2]
[343994077,1733171439812,-500.0,0.00025999,2]
[343994078,1733171439822,-121.35804319,0.00025999,2]
[343994079,1733171439835,-348.75423922,0.00025999,2]
[343994081,1733171439845,-151.0,0.00030538,7]
[343994083,1733171439854,-151.0,0.00030538,7]
[343994084,1733171439864,-151.0,0.00030538,7]
[343994085,1733171439873,-151.0,0.00030538,7]
[343994086,1733171439883,-151.0,0.00030538,7]
[343994087,1733171439893,-679731.46721472,0.0003054,10]
[343994089,1733171439903,-410.05762666,0.0003054,2]
[343994091,1733171439913,-1842.4928703,0.0003054,2]
[343994092,1733171439923,-1829209.07350988,0.0003054,10]
[343994093,1733171439934,-26395.12047488,0.0003054,7]
[343994094,1733171439944,-38553.78093308,0.0003054,5]
[343994095,1733171439953,-540420.93693713,0.0003054,10]
[343994096,1733171439966,-2657.12696796,0.0003054,2]
[343994097,1733171439978,-145108.46665808,0.0003054,2]
[343994098,1733171439988,-437982.45392695,0.0003054,10]
[343994099,1733171439999,-1711.66400965,0.0003054,15]
[343994100,1733171440009,-686.71703036,0.0003054,5]
[343994102,1733171440020,-314253.66921621,0.0003054,10]
[343994104,1733171440031,-267200.43282173,0.0003054,10]
[343994105,1733171440041,-169.0,0.0003054,15]
[343994106,1733171440051,-644653.86399336,0.0003054,10]
[343994107,1733171440060,-435325.87876689,0.0003054,10]
[343994108,1733171440070,-2249.68379552,0.0003054,20]
[343994109,1733171440079,-1043513.46089863,0.0003054,10]
[343994113,1733171440258,-790.3653,0.0003023,30]
[343994114,1733171440268,-151.0,0.00030538,7]
[343994115,1733171440277,-28054.23322607,0.0003054,10]
[343994143,1733171443432,-525.01464265,0.00027397,7]
[343994144,1733171443442,-665.87,0.0003053,10]
[343994145,1733171443451,-3860.5276114,0.0003054,10]
[343994146,1733171443463,-38025.40855697,0.0003054,10]
[343994147,1733171443477,-10811.80120896,0.0003054,10]
[343994148,1733171443488,-5993.16761618,0.0003054,10]
[343994149,1733171443499,-2532.24709092,0.0003054,10]
[343994166,1733171446406,-760.0,0.0003023,30]
[343994167,1733171446416,-1752.097425,0.000305,3]
[343994168,1733171446426,-132.90125821,0.0003054,10]
[343994169,1733171446437,-27454.48090469,0.0003054,10]
[343994184,1733171710495,161.202822,0.00013973,2]
[343994207,1733172388777,161.202822,0.00013973,2]
[343994284,1733172632829,-500.0,0.0002,2]
[343994293,1733172638473,-669.27083333,0.0002,2]
[343994294,1733172638486,-161.202822,0.00025156,2]
[343994295,1733172638496,-300.0,0.00026149,2]
[343994296,1733172638509,-300.0,0.00026149,2]
[343994297,1733172638519,-1264.87634467,0.0002615,2]
[343994310,1733172640523,-6124.12365533,0.0002615,2]
[343994311,1733172640534,-8515.67634451,0.00026151,2]
[343994342,1733172643622,-1102.074556,0.00026151,2]
[343994343,1733172643634,-15282.24909949,0.00026151,2]
[343994344,1733172643643,-500.31221398,0.00027373,2]
[343994345,1733172643652,-218.90136471,0.00027396,2]
[343994346,1733172643662,-525.14809505,0.00027396,2]
[343994347,1733172643672,-500.0,0.00027396,2]
[343994348,1733172643681,-270.03884618,0.00027396,2]
[343994349,1733172643691,-167.94731279,0.00027396,2]
[343994387,1733172946577,164.0,0.00025999,60]
[343994389,1733173072340,201.192962,0.00013973,2]
[343994928,1733173755554,191.133313,0.00013973,2]
[343994979,1733173831903,-1209.29120551,0.00018265,2]
[343994981,1733173831913,-526.4972571,0.0001845,2]
[343994983,1733173831923,-2575.06281753,0.00018519,2]
[343994985,1733173831934,-4074.7918091,0.00018597,2]
[343994987,1733173831944,-904.6113931,0.0001862,2]
[343994989,1733173831953,-153.54672734,0.00018733,2]
[343994992,1733173831964,-2575.06281751,0.00018799,2]
[343994994,1733173831973,-300.0,0.00018833,2]
[343994996,1733173831983,-300.0,0.00018833,2]
[343994999,1733173831993,-10222.619291,0.00018834,2]
[343995000,1733173832002,-2575.06281751,0.00019078,2]
[343995002,1733173832012,-169.895151,0.00019178,2]
[343995004,1733173832022,-1566.15367202,0.00019241,2]
[343995006,1733173832031,-500.0,0.00019504,2]
[343995007,1733173832135,-500.0,0.00019504,2]
[343995008,1733173832145,-500.0,0.00019504,2]
[343995009,1733173832156,-500.0,0.00019504,2]
[343995010,1733173832166,-447.17271329,0.00019504,2]
[343995011,1733173832178,-152.0,0.00019731,2]
[343995012,1733173832188,-195.31907312,0.000199,2]
[343995013,1733173832197,-257.73541182,0.000199,2]
[343995014,1733173832206,-3761.46662517,0.000199,2]
[343995015,1733173832215,-500.0,0.00019973,2]
[343995016,1733173832225,-10487.51650275,0.00019974,2]
[343995094,1733173837862,-290.62712455,0.000199,2]
[343995095,1733173837873,-622.88469482,0.00019974,2]
[343995096,1733173837883,-7176.28818063,0.00019974,2]
[343995097,1733173837895,-7236.19531662,0.00019974,2]
[343995098,1733173837905,-1169.27083333,0.0002,2]
[343995099,1733173837916,-421.03385005,0.0002,2]
[343995100,1733173837930,-607.21,0.0002,2]
[343995158,1733173842805,-404.525,0.0002,2]
[343995159,1733173842863,-20559.74478741,0.0002,2]
[343995176,1733173845775,-3553.48636254,0.0002,2]
[343995177,1733173845785,-191.133313,0.00020447,2]
[343995178,1733173845797,-176.123478,0.00020521,2]
[343995179,1733173845806,-1000.0,0.00020521,2]
[343995180,1733173845815,-420.0,0.00020531,2]
[343995181,1733173845825,-420.0,0.00020716,2]
[343995182,1733173845834,-290.62712453,0.00020762,2]
[343995183,1733173845847,-176.123478,0.00021032,2]
[343995184,1733173845856,-3332.65624393,0.00021419,2]
[343995185,1733173845879,-428.81038122,0.00021419,2]
[343995186,1733173845890,-1500.0,0.00021522,2]
[343995187,1733173845900,-176.123478,0.00021543,2]
[343995190,1733173845910,-290.62712453,0.00021623,2]
[343995193,1733173845919,-0.82046064,0.00021722,2]
[343995197,1733173845931,-315.17442363,0.00021722,2]
[343995200,1733173845942,-248.7679091,0.00021722,2]
[343995202,1733173845951,-346.3961545,0.00021722,2]
[343995204,1733173845961,-500.0,0.00021722,2]
[343995205,1733173845971,-438.46151276,0.00021722,2]
[343996441,1733173859826,160.0,0.00022,60]
[344002627,1733174601662,172.019981,0.00013973,2]
[344002629,1733174759224,200.0,0.00025999,60]
[344002692,1733175033725,-458.864464,0.00018726,2]
[344002693,1733175033735,-250.0,0.0001886,2]
[344002694,1733175033745,-1616.49939762,0.00019045,2]
[344002695,1733175033757,-7364.42452698,0.00019045,2]
[344002696,1733175033767,-170.3734,0.00019178,2]
[344002697,1733175033777,-300.0,0.00019607,2]
[344002698,1733175033786,-300.0,0.00019607,2]
[344002699,1733175033796,-24900.0,0.00019612,2]
[344002700,1733175033806,-3190.59398669,0.00019614,2]